[Event "3rd Sunway Formentera-A 2024"]
[Site "Formentera"]
[Date "2024.04.12"]
[Round "4.11"]
[White "Botez, Andrea"]
[Black "Nurgali, Nazerke"]
[Result "1/2-1/2"]
[ECO "D00"]
[WhiteElo "1879"]
[BlackElo "2148"]
[Annotator "RC"]
[PlyCount "189"]
[EventDate "2024.04.03"]
[EventType "swiss"]
[EventCountry "ESP"]
[SourceTitle "playchess.com"]
[Source "ChessBase"]
[SourceQuality "1"]
[TimeControl "40/5400+30:1800+30"]

1. d4 {[%emt 0:00:11]} d5 {[%emt 0:00:12]} 2. Nc3 {[%emt 0:00:13]} Nf6 {[%emt 0:00:50]} 3. Bf4 {[%emt 0:00:14]} e6 {[%emt 0:00:31]} 4. e3 {[%emt 0:00:18]} Bd6 {[%emt 0:01:40]} 5. Nf3 {[%emt 0:01:07]} h6 {[%emt 0:02:47]} 6. Bd3 {[%emt 0:04:45]} b6 {[%emt 0:05:13]} 7. Ne2 {[%emt 0:08:59]} Bb7 {[%emt 0:02:44]} 8. O-O {[%emt 0:04:50]} c5 {[%emt 0:03:08]} 9. c3 {[%emt 0:02:12]} O-O {[%emt 0:01:08]} 10. Rc1 {[%emt 0:04:35]} Nc6 {[%emt 0:00:24]} 11. Bb1 {[%emt 0:06:55]} Qc7 {[%emt 0:05:20]} 12. dxc5 {[%emt 0:15:46]} bxc5 {[%emt 0:01:27]} 13. Bxd6 {[%emt 0:00:10]} Qxd6 {[%emt 0:00:05]} 14. e4 {[%emt 0:01:16]} Rfd8 {[%emt 0:08:02]} 15. Ng3 {[%emt 0:01:41]} Qf4 {[%emt 0:09:43]} 16. exd5 {[%emt 0:12:50]} exd5 {[%emt 0:00:17]} 17. Re1 {[%emt 0:01:02]} g6 {[%emt 0:10:29]} 18. Qb3 {[%emt 0:07:18]} Qc7 {[%emt 0:02:31]} 19. Rcd1 {[%emt 0:03:35]} Kg7 {[%emt 0:01:59]} 20. Qb5 {[%emt 0:03:34]} Qb6 {[%emt 0:01:04]} 21. a4 {[%emt 0:01:20]} Ba6 {[%emt 0:00:55]} 22. Qxb6 {[%emt 0:00:12]} axb6 {[%emt 0:00:02]} 23. Ne5 {[%emt 0:04:02]} Nxe5 {[%emt 0:03:30]} 24. Rxe5 {[%emt 0:00:04]} Bc4 {[%emt 0:02:32]} 25. Bc2 {[%emt 0:00:33]} d4 {[%emt 0:00:24]} 26. cxd4 {[%emt 0:01:50]} cxd4 {[%emt 0:00:05]} 27. Rd2 {[%emt 0:03:50]} d3 {[%emt 0:02:37]} 28. Bd1 {[%emt 0:00:10]} Rac8 {[%emt 0:02:25]} 29. f3 {[%emt 0:01:12]} Nd7 {[%emt 0:05:13]} 30. Re4 {[%emt 0:06:19]} f5 {[%emt 0:03:53]} 31. Rd4 {[%emt 0:03:40]} Ne5 {[%emt 0:00:17]} 32. Rxd8 {[%emt 0:00:05]} Rxd8 {[%emt 0:00:04]} 33. Kf2 {[%emt 0:01:13]} Nc6 {[%emt 0:01:57]} 34. f4 {[%emt 0:00:28]} Na5 {[%emt 0:02:45]} 35. Ke3 {[%emt 0:00:46]} Nc6 {[%emt 0:01:39]} 36. Kf2 {[%emt 0:00:21]} Kf6 {[%emt 0:00:31]} 37. Nf1 {[%emt 0:00:13]} Rd4 {[%emt 0:01:47]} 38. g3 {[%emt 0:00:41]} g5 {[%emt 0:02:27]} 39. Ke3 {[%emt 0:00:49]} gxf4+ {[%emt 0:01:07]} 40. Kf2 {[%emt 0:00:00]} Ne5 {[%emt 0:00:00]} 41. b4 {[%emt 0:08:53]} Bd5 {[%emt 0:06:50]} 42. Rb2 {[%emt 0:02:46]} Nc4 {[%emt 0:01:25]} 43. Rb1 {[%emt 0:00:15]} fxg3+ {[%emt 0:01:32]} 44. hxg3 {[%emt 0:00:47]} f4 {[%emt 0:00:34]} 45. a5 {[%emt 0:04:06]} bxa5 {[%emt 0:00:51]} 46. bxa5 {[%emt 0:00:04]} Nxa5 {[%emt 0:03:11]} 47. Rb6+ {[%emt 0:00:29]} Kg7 {[%emt 0:02:50]} 48. Nd2 {[%emt 0:02:25]} fxg3+ {[%emt 0:00:34]} 49. Kxg3 {[%emt 0:00:37]} Bf7 {[%emt 0:00:29]} 50. Ra6 {[%emt 0:01:43]} Nb7 {[%emt 0:03:17]} 51. Ra7 {[%emt 0:02:41]} Rb4 {[%emt 0:00:38]} 52. Bf3 {[%emt 0:00:35]} Nd6 {[%emt 0:00:36]} 53. Bd5 {[%emt 0:01:55]} Kf6 {[%emt 0:04:27]} 54. Bxf7 {[%emt 0:06:17]} Nxf7 {[%emt 0:00:02]} 55. Rd7 {[%emt 0:00:12]} Ne5 {[%emt 0:01:09]} 56. Rd6+ {[%emt 0:00:03]} Kf5 {[%emt 0:05:45]} 57. Rxh6 {[%emt 0:00:57]} Rg4+ {[%emt 0:00:03]} 58. Kf2 {[%emt 0:01:25]} Rg8 {[%emt 0:01:00]} 59. Rd6 {[%emt 0:00:47]} Ng4+ {[%emt 0:01:55]} 60. Kf3 {[%emt 0:00:31]} Rh8 {[%emt 0:00:18]} 61. Kg3 {[%emt 0:02:30]} Ne5 {[%emt 0:00:27]} 62. Nf3 {[%emt 0:00:57]} Rg8+ {[%emt 0:02:21]} 63. Kf2 {[%emt 0:00:14]} Ng4+ {[%emt 0:00:10]} 64. Ke1 {[%emt 0:00:37]} Re8+ {[%emt 0:00:44]} 65. Kd2 {[%emt 0:00:30]} Nf2 {[%emt 0:00:05]} 66. Rxd3 {[%emt 0:00:56]} Nxd3 {[%emt 0:00:06]} 67. Kxd3 {[%emt 0:00:02]} Kf4 {[%emt 0:00:12]} 68. Nd4 {[%emt 0:00:13]} Rd8 {[%emt 0:00:04]} 69. Kc4 {[%emt 0:01:06]} Ke4 {[%emt 0:00:04]} 70. Nc6 {[%emt 0:00:35]} Rd5 {[%emt 0:00:44]} 71. Ne7 {[%emt 0:00:23]} Rh5 {[%emt 0:01:18]} 72. Nc6 {[%emt 0:00:23]} Rh1 {[%emt 0:00:04]} 73. Kc5 {[%emt 0:00:20]} Rd1 {[%emt 0:00:45]} 74. Ne7 {[%emt 0:00:31]} Rc1+ {[%emt 0:00:25]} 75. Kd6 {[%emt 0:00:05]} Ra1 {[%emt 0:00:18]} 76. Kc5 {[%emt 0:00:34]} Ke5 {[%emt 0:00:37]} 77. Nc6+ {[%emt 0:00:14]} Kf5 {[%emt 0:00:06]} 78. Nd4+ {[%emt 0:00:08]} Kf6 {[%emt 0:00:05]} 79. Kd5 {[%emt 0:00:19]} Ra5+ {[%emt 0:00:04]} 80. Ke4 {[%emt 0:00:09]} Re5+ {[%emt 0:00:18]} 81. Kf4 {[%emt 0:00:14]} Re8 {[%emt 0:00:06]} 82. Nc6 {[%emt 0:00:32]} Rh8 {[%emt 0:00:18]} 83. Ke4 {[%emt 0:00:21]} Rh4+ {[%emt 0:00:47]} 84. Kd5 {[%emt 0:00:06]} Rh5+ {[%emt 0:00:05]} 85. Ke4 {[%emt 0:00:15]} Rf5 {[%emt 0:00:07]} 86. Nd4 {[%emt 0:00:16]} Rf1 {[%emt 0:00:07]} 87. Kd5 {[%emt 0:00:45]} Rf4 {[%emt 0:00:11]} 88. Nc6 {[%emt 0:00:22]} Rf5+ {[%emt 0:00:14]} 89. Ke4 {[%emt 0:00:13]} Rc5 {[%emt 0:00:04]} 90. Nd4 {[%emt 0:00:06]} Rc1 {[%emt 0:00:08]} 91. Kd5 {[%emt 0:00:12]} Kg5 {[%emt 0:00:12]} 92. Ne6+ {[%emt 0:00:58]} Kg4 {[%emt 0:00:04]} 93. Nd4 {[%emt 0:00:11]} Rd1 {[%emt 0:00:03]} 94. Ke5 {[%emt 0:00:21]} Rxd4 {[%emt 0:00:04]} 95. Kxd4 {[%emt 0:00:04]} 1/2-1/2

[Event "3rd Sunway Formentera-A 2024"]
[Site "Formentera"]
[Date "2024.04.12"]
[Round "4.12"]
[White "Mohamed Anees M"]
[Black "Tsatsalashvili, Keti"]
[Result "1-0"]
[ECO "B66"]
[WhiteElo "2253"]
[BlackElo "2315"]
[Annotator "RC"]
[PlyCount "133"]
[EventDate "2024.04.03"]
[EventType "swiss"]
[EventCountry "ESP"]
[SourceTitle "playchess.com"]
[Source "ChessBase"]
[SourceQuality "1"]
[TimeControl "40/5400+30:1800+30"]

1. e4 {[%emt 0:00:04]} c5 {[%emt 0:00:15]} 2. Nf3 {[%emt 0:00:06]} d6 {[%emt 0:00:08]} 3. d4 {[%emt 0:00:05]} cxd4 {[%emt 0:00:05]} 4. Nxd4 {[%emt 0:00:05]} Nf6 {[%emt 0:00:05]} 5. Nc3 {[%emt 0:00:05]} Nc6 {[%emt 0:00:03]} 6. Bg5 {[%emt 0:00:29]} e6 {[%emt 0:00:44]} 7. Qd2 {[%emt 0:00:06]} a6 {[%emt 0:00:06]} 8. O-O-O {[%emt 0:00:06]} Be7 {[%emt 0:00:35]} 9. Bxf6 {[%emt 0:00:27]} gxf6 {[%emt 0:01:19]} 10. f4 {[%emt 0:00:06]} Nxd4 {[%emt 0:00:43]} 11. Qxd4 {[%emt 0:00:08]} Qc7 {[%emt 0:00:30]} 12. Be2 {[%emt 0:00:31]} Qc5 {[%emt 0:03:01]} 13. Qd2 {[%emt 0:01:58]} b5 {[%emt 0:03:23]} 14. Bf3 {[%emt 0:00:33]} b4 {[%emt 0:01:04]} 15. Ne2 {[%emt 0:00:10]} e5 {[%emt 0:00:20]} 16. Kb1 {[%emt 0:03:02]} a5 {[%emt 0:01:03]} 17. Ng3 {[%emt 0:01:23]} a4 {[%emt 0:13:36]} 18. Nf5 {[%emt 0:04:00]} Bxf5 {[%emt 0:01:03]} 19. exf5 {[%emt 0:00:07]} Rc8 {[%emt 0:00:05]} 20. Bd5 {[%emt 0:10:58]} Bd8 {[%emt 0:05:21]} 21. Rhf1 {[%emt 0:05:05]} Bb6 {[%emt 0:07:00]} 22. Qe2 {[%emt 0:01:40]} Rc7 {[%emt 0:09:35]} 23. Rf3 {[%emt 0:06:00]} Rg8 {[%emt 0:03:33]} 24. Rh3 {[%emt 0:12:43]} Rg7 {[%emt 0:02:14]} 25. fxe5 {[%emt 0:01:28]} dxe5 {[%emt 0:01:23]} 26. Rhd3 {[%emt 0:00:32]} Ke7 {[%emt 0:01:28]} 27. R3d2 {[%emt 0:02:47]} Rg5 {[%emt 0:24:19]} 28. h4 {[%emt 0:10:15]} Rg7 {[%emt 0:01:10]} 29. Bf3 {[%emt 0:03:59]} b3 {[%emt 0:10:52]} 30. cxb3 {[%emt 0:03:09]} axb3 {[%emt 0:00:06]} 31. axb3 {[%emt 0:00:41]} Rg8 {[%emt 0:02:11]} 32. Bd5 {[%emt 0:12:01]} Qe3 {[%emt 0:04:04]} 33. Qh5 {[%emt 0:00:58]} Rg7 {[%emt 0:00:56]} 34. b4 {[%emt 0:10:03]} Qf4 {[%emt 0:02:55]} 35. b5 {[%emt 0:03:43]} Qg4 {[%emt 0:01:19]} 36. Bf3 {[%emt 0:00:12]} Qxh5 {[%emt 0:00:23]} 37. Bxh5 {[%emt 0:00:02]} Bd4 {[%emt 0:00:28]} 38. Bf3 {[%emt 0:00:09]} Rg8 {[%emt 0:00:30]} 39. Re2 {[%emt 0:01:47]} Kd6 {[%emt 0:00:24]} 40. b6 {[%emt 0:00:00]} Rc4 {[%emt 0:00:00]} 41. b7 {[%emt 0:00:45]} Kc7 {[%emt 0:03:34]} 42. Rc2 {[%emt 0:01:03]} Rxc2 {[%emt 0:00:13]} 43. Kxc2 {[%emt 0:00:05]} Re8 {[%emt 0:00:40]} 44. Ra1 {[%emt 0:01:37]} Bf2 {[%emt 0:02:09]} 45. Ra8 {[%emt 0:04:02]} Rb8 {[%emt 0:00:08]} 46. Ra4 {[%emt 0:00:21]} Rd8 {[%emt 0:01:55]} 47. Rg4 {[%emt 0:04:09]} h6 {[%emt 0:00:17]} 48. Rc4+ {[%emt 0:02:37]} Kb8 {[%emt 0:00:12]} 49. b4 {[%emt 0:00:07]} Be1 {[%emt 0:04:07]} 50. b5 {[%emt 0:00:49]} Bf2 {[%emt 0:01:58]} 51. Ra4 {[%emt 0:03:46]} Kc7 {[%emt 0:00:06]} 52. Ra8 {[%emt 0:00:33]} Rb8 {[%emt 0:00:10]} 53. Be4 {[%emt 0:01:17]} Bd4 {[%emt 0:03:20]} 54. Kb3 {[%emt 0:00:25]} Be3 {[%emt 0:00:25]} 55. Ka4 {[%emt 0:00:25]} Bf2 {[%emt 0:17:04]} 56. Ka5 {[%emt 0:00:51]} Rxb7 {[%emt 0:00:44]} 57. Bxb7 {[%emt 0:00:06]} Kxb7 {[%emt 0:00:03]} 58. Rf8 {[%emt 0:00:56]} Be1+ {[%emt 0:00:05]} 59. Ka4 {[%emt 0:00:03]} Bxh4 {[%emt 0:00:04]} 60. Rxf7+ {[%emt 0:00:10]} Kb6 {[%emt 0:00:04]} 61. Kb4 {[%emt 0:00:17]} Bg5 {[%emt 0:00:17]} 62. Re7 {[%emt 0:00:09]} h5 {[%emt 0:01:04]} 63. Re6+ {[%emt 0:00:27]} Kb7 {[%emt 0:00:12]} 64. Kc5 {[%emt 0:01:16]} Be3+ {[%emt 0:00:05]} 65. Kd5 {[%emt 0:00:07]} Bg5 {[%emt 0:00:05]} 66. b6 {[%emt 0:00:07]} h4 {[%emt 0:00:36]} 67. Kc5 {[%emt 0:00:11]} 1-0

[Event "3rd Sunway Formentera-A 2024"]
[Site "Formentera"]
[Date "2024.04.13"]
[Round "5.1"]
[White "Moussard, Jules"]
[Black "Pranav, V."]
[Result "0-1"]
[ECO "A21"]
[WhiteElo "2610"]
[BlackElo "2604"]
[Annotator "RC"]
[PlyCount "46"]
[EventDate "2024.04.03"]
[EventType "swiss"]
[EventCountry "ESP"]
[SourceTitle "playchess.com"]
[Source "ChessBase"]
[SourceQuality "1"]
[TimeControl "40/5400+30:1800+30"]

1. c4 {[%emt 0:03:25]} e5 {[%emt 0:00:09]} 2. Nc3 {[%emt 0:00:22]} Bb4 {[%emt 0:00:10]} 3. Nf3 {[%emt 0:08:35]} Bxc3 {[%emt 0:01:39]} 4. bxc3 {[%emt 0:00:26]} e4 {[%emt 0:04:06]} 5. Nd4 {[%emt 0:00:08]} Nf6 {[%emt 0:00:52]} 6. g3 {[%emt 0:00:37]} O-O {[%emt 0:03:33]} 7. Bg2 {[%emt 0:00:06]} d5 {[%emt 0:03:20]} 8. cxd5 {[%emt 0:13:47]} Qxd5 {[%emt 0:00:33]} 9. d3 {[%emt 0:00:39]} Qa5 {[%emt 0:16:44]} 10. Nb3 {[%emt 0:15:57]} Qxc3+ {[%emt 0:05:05]} 11. Bd2 {[%emt 0:00:09]} Qe5 {[%emt 0:00:08]} 12. Bf4 {[%emt 0:00:39]} Qe7 {[%emt 0:04:32]} 13. dxe4 {[%emt 0:03:04]} Nxe4 {[%emt 0:01:33]} 14. Qc2 {[%emt 0:07:32]} Qb4+ {[%emt 0:08:50]} 15. Kf1 {[%emt 0:05:51]} Bf5 {[%emt 0:01:57]} 16. Qxc7 {[%emt 0:01:07]} Nc6 {[%emt 0:01:51]} 17. Bxe4 {[%emt 0:09:32]} Qxe4 {[%emt 0:07:10]} 18. f3 {[%emt 0:02:30]} Qc2 {[%emt 0:00:08]} 19. Kf2 {[%emt 0:02:44]} Rfe8 {[%emt 0:00:43]} 20. Rhe1 {[%emt 0:01:39]} Nb4 {[%emt 0:02:14]} 21. Qxb7 {[%emt 0:06:19]} Nd3+ {[%emt 0:00:22]} 22. Kf1 {[%emt 0:00:48]} Bh3+ {[%emt 0:00:39]} 23. Kg1 {[%emt 0:00:01]} Nxf4 {[%emt 0:00:25]} 0-1

[Event "3rd Sunway Formentera-A 2024"]
[Site "Formentera"]
[Date "2024.04.13"]
[Round "5.2"]
[White "Dragnev, Valentin"]
[Black "Ivanchuk, Vasyl"]
[Result "1/2-1/2"]
[ECO "C67"]
[WhiteElo "2571"]
[BlackElo "2611"]
[Annotator "RC"]
[PlyCount "105"]
[EventDate "2024.04.03"]
[EventType "swiss"]
[EventCountry "ESP"]
[SourceTitle "playchess.com"]
[Source "ChessBase"]
[SourceQuality "1"]
[TimeControl "40/5400+30:1800+30"]

1. e4 {[%emt 0:00:03]} e5 {[%emt 0:00:04]} 2. Nf3 {[%emt 0:00:10]} Nc6 {[%emt 0:00:03]} 3. Bb5 {[%emt 0:00:26]} Nf6 {[%emt 0:00:12]} 4. O-O {[%emt 0:08:14]} Nxe4 {[%emt 0:03:38]} 5. Re1 {[%emt 0:00:06]} Nd6 {[%emt 0:00:05]} 6. Nxe5 {[%emt 0:00:04]} Be7 {[%emt 0:00:09]} 7. Bf1 {[%emt 0:00:07]} Nf5 {[%emt 0:01:16]} 8. Nf3 {[%emt 0:00:20]} O-O {[%emt 0:00:20]} 9. d4 {[%emt 0:00:03]} d5 {[%emt 0:00:04]} 10. Nc3 {[%emt 0:00:23]} Bb4 {[%emt 0:00:07]} 11. a3 {[%emt 0:00:46]} Ba5 {[%emt 0:00:08]} 12. h3 {[%emt 0:11:27]} Bb6 {[%emt 0:22:34]} 13. Ne2 {[%emt 0:01:24]} Nce7 {[%emt 0:00:03]} 14. c3 {[%emt 0:10:26]} c6 {[%emt 0:00:18]} 15. Nf4 {[%emt 0:03:04]} Bc7 {[%emt 0:00:02]} 16. Nd3 {[%emt 0:01:34]} Ng6 {[%emt 0:04:09]} 17. a4 {[%emt 0:02:09]} Nd6 {[%emt 0:08:43]} 18. Nfe5 {[%emt 0:09:06]} Ne4 {[%emt 0:04:54]} 19. Nxg6 {[%emt 0:14:02]} fxg6 {[%emt 0:03:10]} 20. f3 {[%emt 0:02:41]} Ng3 {[%emt 0:09:59]} 21. Ne5 {[%emt 0:05:12]} Qh4 {[%emt 0:02:29]} 22. Qd2 {[%emt 0:01:15]} Nxf1 {[%emt 0:26:22]} 23. Rxf1 {[%emt 0:00:09]} Bxe5 {[%emt 0:00:04]} 24. dxe5 {[%emt 0:00:11]} Be6 {[%emt 0:00:01]} 25. Qf2 {[%emt 0:08:00]} Qc4 {[%emt 0:01:17]} 26. Be3 {[%emt 0:01:01]} b6 {[%emt 0:00:16]} 27. a5 {[%emt 0:02:26]} c5 {[%emt 0:00:01]} 28. Rfd1 {[%emt 0:00:48]} h6 {[%emt 0:02:58]} 29. Qf1 {[%emt 0:01:30]} Qxf1+ {[%emt 0:05:19]} 30. Kxf1 {[%emt 0:00:18]} g5 {[%emt 0:00:22]} 31. b4 {[%emt 0:03:32]} Rac8 {[%emt 0:00:01]} 32. axb6 axb6 {[%emt 0:00:01]} 33. bxc5 {[%emt 0:02:00]} bxc5 {[%emt 0:00:01]} 34. Ra5 {[%emt 0:00:33]} d4 {[%emt 0:00:10]} 35. cxd4 {[%emt 0:00:45]} Rfd8 {[%emt 0:00:01]} 36. d5 {[%emt 0:01:30]} Rxd5 {[%emt 0:01:06]} 37. Rxd5 {[%emt 0:00:12]} Bxd5 {[%emt 0:00:01]} 38. Bxc5 {[%emt 0:00:16]} Ra8 {[%emt 0:00:16]} 39. Ba7 {[%emt 0:01:38]} Be6 {[%emt 0:00:10]} 40. Kf2 {[%emt 0:00:00]} Kf7 {[%emt 0:00:00]} 41. Kg3 {[%emt 0:01:14]} Bd7 {[%emt 0:06:05]} 42. Ra6 {[%emt 0:00:25]} Bf5 {[%emt 0:00:27]} 43. h4 {[%emt 0:01:48]} Be6 {[%emt 0:00:06]} 44. hxg5 {[%emt 0:01:01]} hxg5 {[%emt 0:00:01]} 45. f4 {[%emt 0:00:16]} gxf4+ {[%emt 0:08:43]} 46. Kxf4 {[%emt 0:00:16]} Rh8 {[%emt 0:04:16]} 47. Bc5 {[%emt 0:04:16]} Rh4+ {[%emt 0:00:28]} 48. Kf3 {[%emt 0:01:34]} Bd5+ {[%emt 0:00:39]} 49. Kg3 {[%emt 0:00:21]} Re4 {[%emt 0:04:12]} 50. Ra7+ {[%emt 0:00:52]} Kg6 {[%emt 0:00:40]} 51. Rd7 {[%emt 0:01:19]} Rxe5 {[%emt 0:03:52]} 52. Rxg7+ {[%emt 0:00:55]} Kxg7 {[%emt 0:00:10]} 53. Bd4 {[%emt 0:00:03]} 1/2-1/2

[Event "3rd Sunway Formentera-A 2024"]
[Site "Formentera"]
[Date "2024.04.13"]
[Round "5.3"]
[White "Donchenko, Alexander"]
[Black "Xiao, Tong(Qd)"]
[Result "1/2-1/2"]
[ECO "E05"]
[WhiteElo "2633"]
[BlackElo "2484"]
[Annotator "RC"]
[PlyCount "194"]
[EventDate "2024.04.03"]
[EventType "swiss"]
[EventCountry "ESP"]
[SourceTitle "playchess.com"]
[Source "ChessBase"]
[SourceQuality "1"]
[TimeControl "40/5400+30:1800+30"]

1. Nf3 {[%emt 0:00:04]} Nf6 {[%emt 0:00:14]} 2. g3 {[%emt 0:00:27]} e6 {[%emt 0:00:19]} 3. Bg2 {[%emt 0:00:36]} d5 {[%emt 0:00:10]} 4. O-O {[%emt 0:00:34]} Be7 {[%emt 0:01:03]} 5. c4 {[%emt 0:01:19]} O-O {[%emt 0:00:48]} 6. d4 {[%emt 0:02:08]} dxc4 {[%emt 0:00:39]} 7. Qc2 {[%emt 0:01:27]} a6 {[%emt 0:00:30]} 8. a4 {[%emt 0:04:45]} Bd7 {[%emt 0:00:49]} 9. Qxc4 {[%emt 0:00:46]} Bc6 {[%emt 0:00:08]} 10. Bf4 {[%emt 0:00:59]} Bd6 {[%emt 0:01:06]} 11. Qc1 {[%emt 0:00:50]} a5 {[%emt 0:01:03]} 12. Nc3 {[%emt 0:06:19]} Na6 {[%emt 0:01:06]} 13. Bd2 {[%emt 0:11:48]} Nb4 {[%emt 0:06:03]} 14. Qb1 {[%emt 0:03:21]} Nbd5 {[%emt 0:05:17]} 15. Bg5 {[%emt 0:02:24]} Nxc3 {[%emt 0:04:56]} 16. bxc3 {[%emt 0:00:32]} h6 {[%emt 0:00:09]} 17. Bxf6 {[%emt 0:01:05]} Qxf6 {[%emt 0:00:08]} 18. Nd2 {[%emt 0:00:20]} Bxg2 {[%emt 0:13:49]} 19. Kxg2 {[%emt 0:00:06]} e5 {[%emt 0:00:42]} 20. Ne4 {[%emt 0:14:05]} Qe6 {[%emt 0:00:24]} 21. Qxb7 {[%emt 0:06:52]} exd4 {[%emt 0:03:37]} 22. cxd4 {[%emt 0:01:30]} Rab8 {[%emt 0:03:05]} 23. Qc6 {[%emt 0:00:09]} Rb6 {[%emt 0:00:12]} 24. Qc2 {[%emt 0:00:08]} Qd5 {[%emt 0:00:12]} 25. Kg1 {[%emt 0:07:02]} Qxd4 {[%emt 0:00:06]} 26. Rfd1 {[%emt 0:01:20]} Qe5 {[%emt 0:00:35]} 27. Rab1 {[%emt 0:01:55]} Rfb8 {[%emt 0:05:15]} 28. Rxb6 {[%emt 0:01:09]} Rxb6 {[%emt 0:00:05]} 29. e3 {[%emt 0:01:34]} Rb4 {[%emt 0:05:27]} 30. Nxd6 {[%emt 0:02:01]} cxd6 {[%emt 0:01:26]} 31. Qc8+ {[%emt 0:03:11]} Kh7 {[%emt 0:00:05]} 32. Qd7 {[%emt 0:00:22]} Kg8 {[%emt 0:13:42]} 33. Rxd6 {[%emt 0:14:20]} Rxa4 {[%emt 0:04:10]} 34. Qxa4 {[%emt 0:00:51]} Qxd6 {[%emt 0:00:04]} 35. Qxa5 {[%emt 0:00:07]} Qd3 {[%emt 0:02:26]} 36. Qa8+ {[%emt 0:01:56]} Kh7 {[%emt 0:00:06]} 37. Qf3 {[%emt 0:00:06]} Kg8 {[%emt 0:00:28]} 38. h4 {[%emt 0:00:39]} Qb1+ {[%emt 0:00:39]} 39. Kg2 {[%emt 0:00:08]} Qd3 {[%emt 0:00:20]} 40. h5 {[%emt 0:00:00]} Qb5 {[%emt 0:00:00]} 41. Qg4 {[%emt 0:11:36]} Qd5+ {[%emt 0:01:45]} 42. e4 {[%emt 0:01:58]} Qc6 {[%emt 0:00:41]} 43. Qf5 {[%emt 0:00:08]} Qb7 {[%emt 0:00:39]} 44. Qe5 {[%emt 0:00:46]} Qa8 {[%emt 0:01:08]} 45. Kh3 {[%emt 0:01:12]} Qc8+ {[%emt 0:00:11]} 46. Kh2 {[%emt 0:00:59]} Qa8 {[%emt 0:00:19]} 47. Kg2 {[%emt 0:00:38]} Qc8 {[%emt 0:00:12]} 48. Qd5 {[%emt 0:00:15]} Qb8 {[%emt 0:00:20]} 49. Kh3 {[%emt 0:01:56]} Qc8+ {[%emt 0:00:08]} 50. Kh4 {[%emt 0:00:19]} Qc2 {[%emt 0:00:32]} 51. f3 {[%emt 0:02:09]} Qc8 {[%emt 0:00:19]} 52. e5 {[%emt 0:02:08]} Qb8 {[%emt 0:01:06]} 53. f4 {[%emt 0:02:17]} Qc8 {[%emt 0:00:15]} 54. Qd3 {[%emt 0:03:05]} Qc7 {[%emt 0:01:09]} 55. Qe3 {[%emt 0:02:33]} Qd8+ {[%emt 0:00:15]} 56. Kh3 {[%emt 0:00:06]} Qd1 {[%emt 0:05:01]} 57. g4 {[%emt 0:00:18]} Qh1+ {[%emt 0:00:09]} 58. Kg3 {[%emt 0:00:06]} Qd5 {[%emt 0:00:06]} 59. f5 {[%emt 0:01:07]} Kf8 {[%emt 0:00:38]} 60. Qa3+ {[%emt 0:01:26]} Kg8 {[%emt 0:02:49]} 61. Qe3 {[%emt 0:00:44]} Kf8 {[%emt 0:00:06]} 62. Qc3 {[%emt 0:00:40]} Kg8 {[%emt 0:05:39]} 63. Kf4 {[%emt 0:00:59]} Kh7 {[%emt 0:00:28]} 64. Qe3 {[%emt 0:03:04]} Kg8 {[%emt 0:02:17]} 65. e6 {[%emt 0:01:01]} Qd6+ {[%emt 0:00:17]} 66. Qe5 {[%emt 0:00:47]} Qb4+ {[%emt 0:00:20]} 67. Kf3 {[%emt 0:01:02]} Qb3+ {[%emt 0:00:49]} 68. Qe3 {[%emt 0:04:29]} Qb7+ {[%emt 0:04:49]} 69. Kf2 {[%emt 0:01:00]} Qe7 {[%emt 0:01:19]} 70. Kg3 {[%emt 0:01:28]} Qd6+ {[%emt 0:00:16]} 71. Kh3 {[%emt 0:00:13]} Qe7 {[%emt 0:03:06]} 72. Qb3 {[%emt 0:00:47]} Qc7 {[%emt 0:02:37]} 73. Qb4 {[%emt 0:02:34]} fxe6 {[%emt 0:03:18]} 74. fxe6 {[%emt 0:00:04]} Qc6 {[%emt 0:00:04]} 75. Qb8+ {[%emt 0:00:35]} Kh7 {[%emt 0:00:01]} 76. Qb1+ {[%emt 0:01:47]} Kg8 {[%emt 0:00:02]} 77. Qb8+ {[%emt 0:00:54]} Kh7 {[%emt 0:00:01]} 78. Qb3 {[%emt 0:00:07]} Qe4 {[%emt 0:03:33]} 79. Kg3 {[%emt 0:00:02]} g5 {[%emt 0:00:17]} 80. Kf2 {[%emt 0:01:11]} Qf4+ {[%emt 0:03:01]} 81. Qf3 {[%emt 0:01:12]} Qd2+ {[%emt 0:04:34]} 82. Kf1 {[%emt 0:00:58]} Qd8 {[%emt 0:00:27]} 83. Qe4+ {[%emt 0:00:43]} Kh8 {[%emt 0:00:02]} 84. Ke2 {[%emt 0:01:21]} Qf6 {[%emt 0:00:34]} 85. Kd3 {[%emt 0:00:30]} Qf1+ {[%emt 0:00:34]} 86. Kd4 {[%emt 0:00:25]} Qa1+ {[%emt 0:00:49]} 87. Kc5 {[%emt 0:00:23]} Qa5+ {[%emt 0:00:44]} 88. Kc4 {[%emt 0:00:21]} Qa4+ {[%emt 0:00:32]} 89. Kd3 {[%emt 0:00:01]} Qb3+ {[%emt 0:01:31]} 90. Kd2 {[%emt 0:00:12]} Qb2+ {[%emt 0:01:02]} 91. Qc2 {[%emt 0:00:30]} Qxc2+ {[%emt 0:00:30]} 92. Kxc2 {[%emt 0:00:30]} Kg7 {[%emt 0:00:30]} 93. Kd3 {[%emt 0:00:30]} Kf6 {[%emt 0:00:30]} 94. Kd4 {[%emt 0:00:30]} Kxe6 {[%emt 0:00:30]} 95. Ke4 {[%emt 0:00:30]} Kf6 {[%emt 0:00:30]} 96. Kd5 {[%emt 0:00:30]} Kf7 {[%emt 0:00:30]} 97. Ke5 {[%emt 0:00:30]} Ke7 {[%emt 0:00:30]} 1/2-1/2